fUST/lending_fUST_20241208
["ID","MTS","AMOUNT","RATE_DAILY","PERIOD"]
[344626634,1733635846161,-2111.73012372,0.00027351,2]
[344626748,1733637037962,-267.12,0.00023993,2]
[344626749,1733637037974,-300.0,0.00025445,2]
[344626751,1733637037983,-300.0,0.00025445,2]
[344626753,1733637037993,-2797.013895,0.00025446,2]
[344626762,1733637038076,-415.89738549,0.00025446,2]
[344626764,1733637038088,-587.7400002,0.00025446,2]
[344626766,1733637038101,-583.23430716,0.00025446,2]
[344626896,1733637040047,-319.34,0.00025446,2]
[344627223,1733637043325,-5959.24240022,0.00025446,2]
[344627248,1733637332562,150.0,0.0002,2]
[344627297,1733638232407,-534.15274991,0.00023492,2]
[344627438,1733638238312,-911.71863437,0.00023492,2]
[344627642,1733638240339,-3554.12861572,0.00023492,2]
[344627643,1733638240351,-300.0,0.00023828,2]
[344627644,1733638240362,-14575.3713843,0.00023829,2]
[344627649,1733638240411,-307.60896,0.00023829,2]
[344627669,1733638243495,-455.24442271,0.00023829,2]
[344627804,1733639432612,-163.0,0.00022,2]
[344627806,1733639432622,-469.8346525,0.00022061,2]
[344627808,1733639432631,-250.0,0.00022105,2]
[344627810,1733639432641,-163.0,0.00022192,2]
[344627812,1733639432650,-163.0,0.00023014,2]
[344627814,1733639432659,-300.0,0.00023076,2]
[344627815,1733639432669,-300.0,0.00023076,2]
[344627817,1733639432680,-15288.75960374,0.00023077,2]
[344627819,1733639432689,-24900.0,0.00023077,2]
[344627820,1733639432698,-1580.50938137,0.00023088,2]
[344627821,1733639432707,-248.566545,0.00023188,2]
[344627822,1733639432717,-839.4820036,0.0002332,2]
[344627823,1733639432727,-166.242795,0.00023562,2]
[344627824,1733639432736,-402.54507661,0.000236,2]
[344627825,1733639432745,-589.423716,0.00023605,2]
[344627826,1733639432755,-1275.6823822,0.00023708,2]
[344627827,1733639432764,-180.47786103,0.00023781,2]
[344627828,1733639432773,-336.03378608,0.00023819,2]
[344627829,1733639432782,-589.423716,0.00023826,2]
[344627830,1733639432791,-151.0,0.00023826,7]
[344627831,1733639432801,-151.0,0.00023826,7]
[344627832,1733639432811,-508.91075026,0.00024,2]
[344627833,1733639432820,-589.423716,0.00024046,2]
[344627834,1733639432830,-1580.50938135,0.00024131,2]
[344627835,1733639432839,-167.0,0.00024164,2]
[344627836,1733639432848,-589.423716,0.00024267,2]
[344627837,1733639432858,-2937.0,0.00024341,2]
[344627838,1733639432867,-233.58535,0.00024341,7]
[344627839,1733639432876,-589.423716,0.00024488,2]
[344627840,1733639432886,-151.0,0.00024708,7]
[344627841,1733639432895,-589.423716,0.00024708,2]
[344627842,1733639432905,-151.0,0.000249,7]
[344627843,1733639432914,-151.0,0.000249,7]
[344627844,1733639432923,-151.0,0.000249,7]
[344627845,1733639432933,-151.0,0.000249,7]
[344627846,1733639432943,-151.0,0.000249,7]
[344627847,1733639432952,-589.423716,0.00024929,2]
[344627848,1733639432962,-151.0,0.00025,7]
[344627849,1733639432971,-151.0,0.00025,7]
[344627850,1733639432980,-151.0,0.00025,7]
[344627851,1733639432992,-151.0,0.00025,7]
[344627852,1733639433001,-250.282082,0.00025,7]
[344627853,1733639433010,-151.0,0.00025,7]
[344627854,1733639433020,-151.0,0.00025,7]
[344627855,1733639433030,-151.0,0.00025,7]
[344627856,1733639433039,-12662.0,0.00025,2]
[344627857,1733639433049,-420.0,0.00025048,2]
[344627858,1733639433058,-256.71977986,0.00025149,2]
[344627859,1733639433070,-332.70393614,0.00025149,2]
[344627860,1733639433080,-151.0,0.00025173,7]
[344627861,1733639433089,-151.0,0.00025173,7]
[344627862,1733639433099,-837.81906386,0.00025174,2]
[344627863,1733639433110,-586.695,0.00025174,2]
[344627905,1733639438441,-152.0,0.00023178,2]
[344627908,1733639438451,-151.0,0.00023826,7]
[344627910,1733639438460,-151.0,0.00024267,7]
[344627912,1733639438469,-151.0,0.00024341,7]
[344627914,1733639438479,-151.0,0.000249,7]
[344627927,1733639438597,-151.0,0.00025,7]
[344627930,1733639438608,-245.2,0.00025,7]
[344627932,1733639438618,-155.99531749,0.00025174,2]
[344627934,1733639438627,-151.0,0.00025323,7]
[344627936,1733639438637,-151.0,0.00025323,7]
[344627938,1733639438646,-151.0,0.00025323,7]
[344627940,1733639438655,-151.0,0.00025323,7]
[344627942,1733639438665,-318.7921254,0.00025323,2]
[344627944,1733639438674,-589.423716,0.0002537,2]
[344627946,1733639438683,-155.05439714,0.00025377,2]
[344627948,1733639438694,-156.0,0.00025384,2]
[344627950,1733639438703,-151.0,0.00025684,7]
[344627952,1733639438712,-151.0,0.00025684,7]
[344627954,1733639438721,-151.0,0.00025684,7]
[344627956,1733639438730,-153.245941,0.00025684,7]
[344627958,1733639438739,-172.282041,0.00025732,2]
[344627960,1733639438748,-151.0,0.00025763,7]
[344627962,1733639438759,-270.568126,0.00025763,7]
[344627964,1733639438768,-151.0,0.00025775,7]
[344627966,1733639438778,-151.0,0.00025775,7]
[344627968,1733639438787,-151.0,0.00025775,7]
[344627970,1733639438796,-163.0,0.00025775,2]
[344627972,1733639438805,-151.0,0.00025835,7]
[344627974,1733639438814,-159.054,0.0002598,2]
[344627976,1733639438824,-1580.50938135,0.00026217,2]
[344627978,1733639438833,-151.0,0.00026236,7]
[344627980,1733639438843,-151.0,0.00026236,7]
[344627982,1733639438852,-151.0,0.00026236,7]
[344627984,1733639438861,-151.0,0.00026282,7]
[344627986,1733639438870,-277.621183,0.00026301,2]
[344627988,1733639438880,-151.0,0.00026468,7]
[344627990,1733639438889,-151.0,0.00026468,7]
[344627992,1733639438898,-151.0,0.00026468,7]
[344627994,1733639438907,-151.0,0.00026562,7]
[344627996,1733639438917,-151.0,0.00026708,7]
[344627998,1733639438926,-151.0,0.00026708,7]
[344628000,1733639438937,-151.0,0.00026945,7]
[344628002,1733639438946,-166.0,0.00027,2]
[344628004,1733639438955,-166.242795,0.00027049,2]
[344628006,1733639438964,-151.0,0.00027181,7]
[344628008,1733639438974,-151.0,0.00027189,7]
[344628010,1733639438984,-151.0,0.00027189,7]
[344628012,1733639438993,-224.361716,0.00027189,7]
[344628014,1733639439003,-587.0,0.00027189,2]
[344628016,1733639439013,-1580.50938135,0.0002726,2]
[344628018,1733639439023,-277.621183,0.00027275,2]
[344628020,1733639439032,-151.0,0.00027353,7]
[344628022,1733639439042,-154.798615,0.00027353,7]
[344628024,1733639439053,-151.0,0.00027353,7]
[344628026,1733639439063,-163.0,0.00027386,2]
[344628028,1733639439072,-163.0,0.00027616,2]
[344628030,1733639439081,-239.9816538,0.00027671,2]
[344628032,1733639439091,-157.936,0.0002798,120]
[344628034,1733639439100,-151.0,0.00028093,7]
[344628036,1733639439110,-277.621183,0.00028248,2]
[344628038,1733639439120,-150.0,0.00028276,2]
[344628040,1733639439134,-534.565,0.00028276,2]
[344628042,1733639439143,-151.0,0.00028276,7]
[344628044,1733639439152,-1580.50938135,0.00028303,2]
[344628046,1733639439161,-166.0,0.00028785,2]
[344628048,1733639439170,-1304.70427745,0.00028878,2]
[344628050,1733639439179,-163.0,0.00028997,2]
[344628052,1733639439191,-158.032,0.0002918,120]
[344628054,1733639439202,-277.621183,0.00029221,2]
[344628056,1733639439211,-500.0,0.00029473,5]
[344628058,1733639439221,-153.0,0.00029473,2]
[344628060,1733639439230,-153.0,0.00029473,2]
[344628062,1733639439240,-153.0,0.00029474,2]
[344628064,1733639439249,-153.0,0.00029474,2]
[344628066,1733639439258,-153.0,0.00029474,2]
[344628068,1733639439267,-153.0,0.00029474,2]
[344628070,1733639439276,-153.0,0.00029474,2]
[344628072,1733639439286,-153.0,0.00029474,2]
[344628074,1733639439295,-153.0,0.00029474,2]
[344628076,1733639439305,-153.0,0.00029474,2]
[344628078,1733639439314,-153.0,0.00029474,2]
[344628080,1733639439323,-153.0,0.00029474,2]
[344628081,1733639439332,-153.0,0.00029474,2]
[344628082,1733639439341,-153.0,0.00029474,2]
[344628083,1733639439350,-153.0,0.00029474,2]
[344628084,1733639439359,-153.0,0.00029474,2]
[344628085,1733639439368,-153.0,0.00029474,2]
[344628086,1733639439377,-153.0,0.00029474,2]
[344628087,1733639439387,-153.0,0.00029474,2]
[344628088,1733639439396,-153.0,0.00029474,2]
[344628089,1733639439405,-153.0,0.00029474,2]
[344628090,1733639439414,-153.0,0.00029474,2]
[344628091,1733639439423,-153.0,0.00029474,2]
[344628092,1733639439432,-153.0,0.00029474,2]
[344628093,1733639439442,-153.0,0.00029474,2]
[344628094,1733639439451,-153.0,0.00029474,2]
[344628095,1733639439460,-153.0,0.00029474,2]
[344628096,1733639439469,-153.0,0.00029474,2]
[344628097,1733639439479,-153.0,0.00029474,2]
[344628098,1733639439489,-153.0,0.00029474,2]
[344628099,1733639439498,-153.0,0.00029474,2]
[344628101,1733639439507,-153.0,0.00029474,2]
[344628103,1733639439516,-153.0,0.00029474,2]
[344628105,1733639439526,-153.0,0.00029474,2]
[344628107,1733639439536,-153.0,0.00029474,2]
[344628109,1733639439546,-153.0,0.00029474,2]
[344628111,1733639439556,-153.0,0.00029474,2]
[344628113,1733639439565,-153.0,0.00029474,2]
[344628115,1733639439575,-153.0,0.00029474,2]
[344628117,1733639439584,-153.0,0.00029474,2]
[344628119,1733639439593,-153.0,0.00029474,2]
[344628121,1733639439602,-153.0,0.00029474,2]
[344628123,1733639439616,-153.0,0.00029474,2]
[344628125,1733639439625,-153.0,0.00029474,2]
[344628127,1733639439633,-153.0,0.00029474,2]
[344628129,1733639439642,-153.0,0.00029474,2]
[344628131,1733639439651,-153.0,0.00029474,2]
[344628133,1733639439661,-153.0,0.00029474,2]
[344628135,1733639439671,-153.0,0.00029474,2]
[344628137,1733639439680,-153.0,0.00029474,2]
[344628139,1733639439690,-153.0,0.00029474,2]
[344628141,1733639439708,-153.0,0.00029474,2]
[344628143,1733639439717,-153.0,0.00029474,2]
[344628145,1733639439726,-153.0,0.00029474,2]
[344628147,1733639439736,-823.0,0.00029513,2]
[344628149,1733639439745,-1187.58818134,0.000299,2]
[344628151,1733639439755,-501.30110559,0.00029973,5]
[344628153,1733639439765,-561.16595599,0.00029999,2]
[344628155,1733639439775,-501.55019872,0.00029999,7]
[344628157,1733639439785,-12343.0,0.0003,20]
[344628159,1733639439795,-8311.74821239,0.0003,20]
[344628249,1733639443816,-2169.0,0.00028276,2]
[344628250,1733639443826,-1580.50938135,0.00029346,2]
[344628251,1733639443836,-4026.25178761,0.0003,20]
[344628252,1733639443845,-3504.78997657,0.0003,20]
[344628864,1733641042488,8461.26,0.0002,2]
[344628991,1733641541009,160.99,0.00025205,60]
[344629170,1733641837711,-300.0,0.00026218,2]
[344629172,1733641837721,-10141.68361726,0.00026219,2]
[344629174,1733641837730,-9372.85846332,0.00026219,2]
[344630417,1733642184655,-450.0,0.0003,120]
[344630631,1733643032135,-248.566546,0.00026529,2]
[344630632,1733643032145,-107.030891,0.00026999,2]
[344630651,1733643038096,-192.969109,0.00026999,2]
[344630652,1733643038105,-1586.03106498,0.00026999,2]
[344630928,1733643046095,-183.96893502,0.00026999,2]
[344630929,1733643046105,-3004.99372648,0.00027,2]
[344631085,1733644232301,-376.19322068,0.00024771,2]
[344631239,1733644831726,150.0,0.00030226,120]
[344631362,1733645060185,500.0,0.00030487,120]
[344631369,1733645069002,500.0,0.00030487,120]
[344631376,1733645075850,500.0,0.00030487,120]
[344631377,1733645081941,500.0,0.00030487,120]
[344631384,1733645088896,500.0,0.00030487,120]
[344631385,1733645095863,89.0,0.00030487,120]
[344631601,1733645432490,-602.45000217,0.00022984,2]
[344631607,1733645432537,-1132.4532312,0.00022984,2]
[344631609,1733645432547,-850.2346532,0.00023643,2]
[344631611,1733645432556,-215.5925026,0.00024286,2]
[344631613,1733645432565,-267.937604,0.00024384,2]
[344631615,1733645432574,-300.0,0.00024423,2]
[344631617,1733645432584,-300.0,0.00024423,2]
[344631618,1733645432593,-1781.59576937,0.00024424,2]
[344631754,1733645718764,6534.2,0.00026,60]
[344631775,1733645955603,180.1148181,0.0001,2]
[344631843,1733646632534,-2418.8439522,0.0002198,2]
[344631845,1733646632544,-169.990189,0.00022426,2]
[344631847,1733646632554,-174.013344,0.0002253,2]
[344631849,1733646632563,-2378.5076117,0.00022735,2]
[344631851,1733646632572,-378.68193233,0.00023455,2]
[344631853,1733646632582,-300.0,0.00023554,2]
[344631855,1733646632591,-300.0,0.00023554,2]
[344631857,1733646632601,-1844.31767526,0.00023555,2]
[344631858,1733646632613,-26837.47383062,0.00023555,2]
[344631859,1733646632622,-158.742233,0.00023555,7]
[344631860,1733646632632,-151.0,0.00023555,7]
[344631861,1733646632642,-156.524036,0.00023555,7]
[344631862,1733646632652,-151.0,0.00023555,7]
[344631863,1733646632661,-153.684032,0.00023555,7]
[344631864,1733646632671,-24900.0,0.00023555,2]
[344631865,1733646632682,-432.30272771,0.00023555,2]
[344631868,1733646632693,-520.235045,0.00023669,2]
[344631870,1733646632703,-153.698208,0.00023705,7]
[344631872,1733646632712,-1283.0233044,0.00023824,2]
[344631874,1733646632722,-32868.19753223,0.00024,2]
[344631876,1733646632733,-378.68193231,0.00024445,2]
[344631878,1733646632743,-154.84515485,0.00024524,2]
[344631880,1733646632755,-151.0,0.00024595,7]
[344631882,1733646632767,-155.875864,0.00024692,7]
[344631884,1733646632778,-151.0,0.00024693,7]
[344631887,1733646632796,-151.0,0.00024693,7]
[344631889,1733646632807,-151.0,0.00024693,7]
[344631891,1733646632817,-151.0,0.00024694,7]
[344631893,1733646632827,-151.0,0.00024695,7]
[344631895,1733646632837,-172.282041,0.00024909,2]
[344631897,1733646632847,-3056.01450669,0.00025,2]
[344631900,1733646632857,-268.632782,0.00025422,7]
[344631902,1733646632866,-378.68193231,0.00025436,2]
[344631904,1733646632876,-420.0,0.00025554,2]
[344631906,1733646632886,-219.695,0.0002565,2]
[344631908,1733646632895,-234.06055054,0.0002575,2]
[344631910,1733646632905,-300.0,0.00025909,2]
[344631912,1733646632915,-167.096495,0.00026301,2]
[344631914,1733646632924,-378.68193231,0.00026426,2]
[344631916,1733646632934,-319.4793541,0.00026533,2]
[344631918,1733646632944,-219.63848,0.00026696,2]
[344631920,1733646632953,-4926.56332568,0.0002699,4]
[344631922,1733646632963,-27901.87202952,0.00027,2]
[344631924,1733646632972,-167.096495,0.00027275,2]
[344631926,1733646632981,-1032.02145008,0.0002731,2]
[344631928,1733646632991,-264.50206123,0.00027396,2]
[344631930,1733646633002,-271.4258996,0.00027396,2]
[344631932,1733646633012,-500.0,0.00027396,2]
[344631934,1733646633022,-291.29811101,0.00027396,2]
[344631936,1733646633033,-346.14701607,0.00027396,2]
[344631938,1733646633043,-500.0,0.00027397,5]
[344631940,1733646633054,-20403.3753088,0.00027397,2]
[344631942,1733646633064,-150.0,0.0002741,2]
[344631944,1733646633074,-532.0,0.0002741,2]
[344631946,1733646633085,-2172.0,0.0002741,2]
[344631948,1733646633095,-2378.0,0.0002741,2]
[344631950,1733646633105,-378.68193231,0.00027417,2]
[344631952,1733646633115,-207.5455741,0.00027671,2]
[344631954,1733646633125,-587.0,0.00027725,2]
[344631957,1733646633136,-9473.32863958,0.00028,7]
[344631959,1733646633145,-1032.02145007,0.0002808,2]
[344631961,1733646633156,-167.096495,0.00028248,2]
[344631963,1733646633166,-378.68193231,0.00028407,2]
[344631965,1733646633176,-500.0,0.00028767,6]
[344631967,1733646633186,-1032.02145007,0.00028849,2]
[344631969,1733646633196,-189.78,0.00029,14]
[344631971,1733646633206,-167.096495,0.00029221,2]
[344631973,1733646633216,-378.68193231,0.00029398,2]
[344631975,1733646633226,-42595.14667,0.000295,25]
[344631977,1733646633237,-1032.02145007,0.00029619,2]
[344631979,1733646633247,-187.0,0.000299,2]
[344631981,1733646633259,-800.0,0.0003,5]
[344631983,1733646633269,-5000.0,0.0003,7]
[344631985,1733646633279,-15283.0,0.0003,20]
[344631987,1733646633289,-7641.0,0.0003,20]
[344631989,1733646633299,-7641.0,0.0003,20]
[344631990,1733646633309,-7641.0,0.0003,20]
[344631991,1733646633319,-7641.0,0.0003,20]
[344631993,1733646633329,-38126.41987416,0.0003,2]
[344631998,1733646633366,-384.2155,0.00023997,2]
[344632034,1733646638437,-115.7845,0.00023997,2]
[344632035,1733646638447,-162.0,0.00023997,2]
[344632036,1733646638456,-500.0,0.00023997,2]
[344632037,1733646638466,-295.08746068,0.00023997,2]
[344632038,1733646638476,-500.0,0.00023997,2]
[344632039,1733646638485,-600.84985415,0.00023997,2]
[344632040,1733646638495,-500.0,0.00023997,2]
[344632041,1733646638505,-500.0,0.00023997,2]
[344632042,1733646638515,-500.0,0.00023997,2]
[344632043,1733646638525,-500.0,0.00023997,2]
[344632044,1733646638535,-500.0,0.00023997,2]
[344632045,1733646638544,-500.0,0.00023997,2]
[344632046,1733646638554,-500.0,0.00023997,2]
[344632047,1733646638564,-500.0,0.00023997,2]
[344632048,1733646638574,-500.0,0.00023997,2]
[344632049,1733646638583,-500.0,0.00023997,2]
[344632050,1733646638594,-500.0,0.00023997,2]
[344632051,1733646638604,-500.0,0.00023997,2]
[344632052,1733646638613,-500.0,0.00023997,2]
[344632053,1733646638623,-500.0,0.00023997,2]
[344632054,1733646638633,-500.0,0.00023997,2]
[344632055,1733646638642,-500.0,0.00023997,2]
[344632056,1733646638652,-500.0,0.00023997,2]
[344632057,1733646638661,-500.0,0.00023997,2]
[344632058,1733646638671,-500.0,0.00023997,2]
[344632059,1733646638680,-500.0,0.00023997,2]
[344632060,1733646638695,-500.0,0.00023997,2]
[344632061,1733646638704,-500.0,0.00023997,2]
[344632063,1733646638714,-500.0,0.00023997,2]
[344632064,1733646638723,-500.0,0.00023997,2]
[344632066,1733646638733,-500.0,0.00023997,2]
[344632068,1733646638743,-500.0,0.00023997,2]
[344632070,1733646638753,-500.0,0.00023997,2]
[344632072,1733646638763,-500.0,0.00023997,2]
[344632074,1733646638776,-500.0,0.00023997,2]
[344632077,1733646638786,-500.0,0.00023997,2]
[344632078,1733646638795,-500.0,0.00023997,2]
[344632080,1733646638805,-500.0,0.00023997,2]
[344632082,1733646638815,-500.0,0.00023997,2]
[344632084,1733646638824,-500.0,0.00023997,2]
[344632086,1733646638834,-500.0,0.00023997,2]
[344632088,1733646638843,-119.27818529,0.00023997,2]
[344632094,1733646638897,-380.72181471,0.00023997,2]
[344632096,1733646638906,-500.0,0.00023997,2]
[344632098,1733646638915,-69.83729156,0.00023997,2]
[344632203,1733646646615,-430.16270844,0.00023997,2]
[344632205,1733646646625,-500.0,0.00023997,2]
[344632207,1733646646635,-500.0,0.00023997,2]
[344632209,1733646646645,-500.0,0.00023997,2]
[344632211,1733646646654,-500.0,0.00023997,2]
[344632213,1733646646663,-500.0,0.00023997,2]
[344632215,1733646646672,-500.0,0.00023997,2]
[344632217,1733646646682,-500.0,0.00023997,2]
[344632219,1733646646696,-500.0,0.00023997,2]
[344632221,1733646646705,-500.0,0.00023997,2]
[344632223,1733646646716,-500.0,0.00023997,2]
[344632225,1733646646726,-500.0,0.00023997,2]
[344632227,1733646646738,-500.0,0.00023997,2]
[344632229,1733646646747,-286.63044533,0.00023997,2]
[344632286,1733647832970,-250.0,0.00027328,2]
[344632287,1733647832980,-500.0,0.00027397,5]
[344632288,1733647832990,-300.0,0.00027569,2]
[344632289,1733647833000,-300.0,0.00027569,2]
[344632290,1733647833013,-2583.72916667,0.0002757,2]
[344632328,1733647838704,-9851.0,0.0002757,2]
[344632383,1733647840616,-2202.58694658,0.0002757,2]
[344632544,1733647846721,-8279.60281005,0.0002757,2]
[344632546,1733647846732,-167.096495,0.00027595,2]
[344632548,1733647846742,-174.013345,0.00027611,2]
[344632550,1733647846752,-150.0,0.0002763,2]
[344632552,1733647846761,-1749.97919534,0.0002763,2]
[344633065,1733649031930,-277.6,0.000274,120]
[344633066,1733649031941,-623.021,0.0002763,2]
[344633067,1733649031951,-8110.9887363,0.00027759,2]
[344633068,1733649031961,-173.4440917,0.00027946,2]
[344633069,1733649031971,-174.013345,0.00028106,2]
[344633070,1733649031980,-485.02784036,0.000284,2]
[344633071,1733649031989,-300.0,0.00028409,2]
[344633072,1733649031999,-234.078,0.000285,2]
[344633073,1733649032009,-485.02784036,0.0002915,2]
[344633074,1733649032018,-485.02784036,0.00029899,2]
[344633075,1733649032027,-171.70621921,0.00029899,2]
[344633076,1733649032037,-206.40429003,0.000299,2]
[344633078,1733649032047,-18724.17775861,0.00029999,2]
[344633080,1733649032056,-500.0,0.00029999,2]
[344633081,1733649032065,-500.0,0.00029999,2]
[344633082,1733649032074,-500.0,0.00029999,2]
[344633083,1733649032084,-500.0,0.00029999,2]
[344633084,1733649032093,-500.0,0.00029999,2]
[344633086,1733649032103,-500.0,0.00029999,2]
[344633088,1733649032113,-500.0,0.00029999,2]
[344633089,1733649032124,-500.0,0.00029999,2]
[344633090,1733649032134,-500.0,0.00029999,2]
[344633091,1733649032144,-500.0,0.00029999,2]
[344633092,1733649032153,-588.0913492,0.00029999,2]
[344633093,1733649032163,-500.0,0.00029999,2]
[344633094,1733649032173,-500.0,0.00029999,2]
[344633095,1733649032183,-500.0,0.00029999,2]
[344633096,1733649032192,-388.34729982,0.00029999,2]
[344633097,1733649032204,-111.65270018,0.00029999,2]
[344633098,1733649032215,-500.0,0.00029999,2]
[344633099,1733649032224,-363.30721671,0.00029999,2]
[344633100,1733649032236,-136.69278329,0.00029999,2]
[344633101,1733649032246,-500.0,0.00029999,2]
[344633102,1733649032255,-494.39075217,0.00029999,2]
[344633103,1733649032267,-5.60924783,0.00029999,2]
[344633104,1733649032277,-410.98825217,0.00029999,2]
[344633152,1733649037952,-89.01174783,0.00029999,2]
[344633154,1733649037966,-500.0,0.00029999,2]
[344633157,1733649037976,-500.0,0.00029999,2]
[344633159,1733649037988,-500.0,0.00029999,2]
[344633161,1733649037999,-500.0,0.00029999,2]
[344633162,1733649038009,-500.0,0.00029999,2]
[344633165,1733649038019,-500.0,0.00029999,2]
[344633167,1733649038029,-500.0,0.00029999,2]
[344633168,1733649038038,-500.0,0.00029999,2]
[344633170,1733649038050,-500.0,0.00029999,2]
[344633171,1733649038060,-500.0,0.00029999,2]
[344633172,1733649038070,-500.0,0.00029999,2]
[344633173,1733649038079,-500.0,0.00029999,2]
[344633174,1733649038088,-500.0,0.00029999,2]
[344633175,1733649038098,-500.0,0.00029999,2]
[344633176,1733649038107,-500.0,0.00029999,2]
[344633177,1733649038116,-500.0,0.00029999,2]
[344633179,1733649038127,-500.0,0.00029999,2]
[344633180,1733649038136,-500.0,0.00029999,2]
[344633181,1733649038145,-500.0,0.00029999,2]
[344633182,1733649038155,-500.0,0.00029999,2]
[344633183,1733649038164,-500.0,0.00029999,2]
[344633184,1733649038174,-500.0,0.00029999,2]
[344633185,1733649038183,-500.0,0.00029999,2]
[344633186,1733649038193,-500.0,0.00029999,2]
[344633187,1733649038202,-550.0,0.00029999,2]
[344633188,1733649038211,-500.0,0.00029999,2]
[344633189,1733649038221,-500.0,0.00029999,2]
[344633190,1733649038230,-500.0,0.00029999,2]
[344633192,1733649038240,-500.0,0.00029999,2]
[344633194,1733649038249,-500.0,0.00029999,2]
[344633196,1733649038258,-500.0,0.00029999,5]
[344633198,1733649038268,-27030.60245051,0.0003,2]
[344637776,1733650232302,-7565.33592338,0.000245,2]
[344637777,1733650232312,-300.0,0.00024999,2]
[344637778,1733650232321,-300.0,0.00024999,2]
[344637779,1733650232331,-3021.85258217,0.00025,2]
[344637780,1733650232366,-4098.62188038,0.00025,2]
[344637781,1733650232375,-301.0,0.00026,7]
[344637782,1733650232385,-50584.99356533,0.00026,30]
[344637783,1733650232395,-420.0,0.00027082,2]
[344637785,1733650232404,-420.0,0.00027499,2]
[344637786,1733650232414,-323.9172494,0.00028196,2]
[344637788,1733650232423,-246.858,0.000285,2]
[344637789,1733650232433,-500.0,0.000287,10]
[344637790,1733650232443,-587.0,0.00029339,2]
[344637791,1733650232452,-12802.34733056,0.0002975,2]
[344637792,1733650232465,-15418.86778926,0.00029754,2]
[344637793,1733650232474,-8615.28674709,0.00029769,2]
[344637794,1733650232485,-474.04358409,0.000299,2]
[344637795,1733650232495,-474.04358409,0.00029985,2]
[344637796,1733650232504,-500.0,0.00029999,5]
[344637797,1733650232514,-2164.93953693,0.0003,2]
[344637798,1733650232524,-1843.37422353,0.0003,2]
[344637799,1733650232534,-500.0,0.0003,120]
[344637800,1733650232544,-500.0,0.0003,120]
[344637801,1733650232553,-386.516,0.0003,120]
[344637802,1733650232563,-10129.5950104,0.0003,2]
[344637803,1733650232573,-200.0,0.0003,120]
[344637804,1733650232583,-750.2739389,0.0003,30]
[344637805,1733650232593,-1000.0,0.0003,60]
[344637806,1733650232605,-45311.09868719,0.0003,2]
[344637807,1733650232615,-280.0,0.0003,2]
[344637808,1733650232728,-295.8698755,0.00030036,2]
[344637809,1733650232740,-474.04358409,0.00030069,2]
[344637810,1733650232750,-295.86987544,0.00030086,2]
[344637811,1733650232759,-500.0,0.00030135,2]
[344637812,1733650232769,-248.81839864,0.00030135,2]
[344637813,1733650232778,-281.0374003,0.00030135,2]
[344637814,1733650232788,-251.88118343,0.00030135,2]
[344637815,1733650232798,-345.66319487,0.00030135,2]
[344637816,1733650232807,-500.0,0.00030136,2]
[344637817,1733650232817,-500.0,0.00030136,2]
[344637818,1733650232826,-500.0,0.00030136,2]
[344637819,1733650232836,-500.0,0.00030136,2]
[344637820,1733650232845,-500.0,0.00030136,2]
[344637821,1733650232856,-485.27650741,0.00030136,2]